lending/lending_fUSD_20241124
["ID","MTS","AMOUNT","RATE_DAILY","PERIOD"]
[343206596,1732451440699,-135345.05602826,0.000477,17]
[343206597,1732451440811,-275.90964152,0.000477,17]
[343206608,1732451443467,-970.6,0.000477,17]
[343206609,1732451443480,-7300.51876828,0.000477,17]
[343206610,1732451443491,-2915.688364,0.000477,17]
[343206611,1732451443503,-26922.92007877,0.000477,17]
[343206612,1732451443534,-18277.71325813,0.000477,17]
[343206613,1732451443545,-13002.51574255,0.000477,17]
[343206614,1732451443590,-303883.75150642,0.000477,17]
[343206615,1732451443648,-12032.33885061,0.000477,17]
[343206616,1732451443661,-1530.94348061,0.000477,17]
[343206617,1732451443671,-29565.59275995,0.000477,25]
[343206618,1732451443680,-300.0,0.000477,17]
[343206619,1732451443690,-1062.48287758,0.000477,10]
[343206620,1732451443700,-1811.87199276,0.00047736,15]
[343206621,1732451443709,-3294.5530132,0.00047767,2]
[343206622,1732451443719,-161.19055878,0.00047773,7]
[343206623,1732451443728,-500.0,0.00047773,2]
[343206624,1732451443737,-10381.38731712,0.0004778,2]
[343206687,1732451446422,-197.89386834,0.0004778,2]
[343206688,1732451446432,-157.65,0.0004779,2]
[343206689,1732451446442,-1000.0,0.00047799,120]
[343206690,1732451446451,-708.0,0.00047799,7]
[343206691,1732451446461,-46520.45613166,0.000478,2]
[343206692,1732451446478,-277.59000675,0.000478,2]
[343206693,1732451446490,-597.4,0.000478,2]
[343206694,1732451446597,-697.0,0.00047307,2]
[343206695,1732451446608,-2410.58,0.00047307,2]
[343206696,1732451446617,-609.55080001,0.000478,2]
[343206697,1732451446708,-620.69856208,0.000478,2]
[343206710,1732451887948,-487.54364615,0.0004,2]
[343206711,1732451895922,-500.0,0.000421,2]
[343206712,1732451895944,-503.32501788,0.000421,2]
[343206713,1732451895968,-321.86457609,0.000421,2]
[343206714,1732451896000,-180.83789049,0.000421,2]
[343206715,1732451952499,266.48104584,0.00042,120]
[343206716,1732451977038,539.35741238,0.00043,60]
[343206717,1732451979892,173.9585,0.00032123,2]
[343206718,1732451980149,173.9585,0.00039801,2]
[343206719,1732452030396,158.32,0.00041096,2]
[343206721,1732452194414,8478.09,0.000351,2]
[343206722,1732452288757,-194.3804429,0.00038,120]
[343206723,1732452288783,-194.3804429,0.0004,120]
[343206724,1732452306184,193.69,0.00024817,2]
[343206725,1732452449762,250.0,0.00031,2]
[343206726,1732452450861,300.0,0.00033,2]
[343206727,1732452451978,350.0,0.00035,2]
[343206728,1732452464641,150.0,0.0004,120]
[343206729,1732452502341,150.0,0.0004,120]
[343206760,1732452631512,-388.7608858,0.00043,120]
[343206762,1732452631523,-150.0,0.00043,120]
[343206764,1732452631533,-284.0993925,0.00043618,2]
[343206766,1732452631543,-150.0,0.00043718,30]
[343206768,1732452631552,-885.68,0.00043756,2]
[343206770,1732452631565,-3000.0,0.00045,40]
[343206773,1732452631575,-174.95883863,0.00045433,120]
[343206775,1732452631585,-250.0,0.00045533,2]
[343206777,1732452631595,-602.86,0.00045568,120]
[343206779,1732452631606,-500.0,0.0004561,2]
[343206781,1732452631617,-23900.0,0.00045619,2]
[343206783,1732452631627,-150.0,0.00045635,2]
[343206785,1732452631637,-1585.19,0.00045651,2]
[343206787,1732452631647,-230.12,0.00045705,2]
[343206789,1732452631658,-673.28,0.00045705,2]
[343206791,1732452631667,-150.39,0.00045747,2]
[343206792,1732452631683,-250.0,0.00045758,120]
[343206793,1732452631693,-1029.9,0.00045783,120]
[343206794,1732452631702,-166.61,0.00045953,2]
[343206795,1732452631712,-274.46,0.00045972,2]
[343206796,1732452631722,-851.45,0.00045973,2]
[343206797,1732452631731,-485.95110725,0.00046,120]
[343206798,1732452631741,-150.0,0.00046,120]
[343206799,1732452631751,-885.68,0.0004602,2]
[343206800,1732452631762,-250.0,0.00046104,120]
[343206801,1732452631772,-170.45,0.00046106,2]
[343206802,1732452631782,-169.4,0.00046148,120]
[343206803,1732452631791,-1000.0,0.0004622,2]
[343206804,1732452631801,-772.47,0.00046292,2]
[343206805,1732452631811,-453.81,0.00046345,2]
[343206806,1732452631820,-216.97775914,0.00046359,2]
[343206807,1732452631830,-527.88,0.0004637,120]
[343206808,1732452631840,-1239.296,0.0004659,77]
[343206809,1732452631850,-225.2885668,0.00046844,4]
[343206810,1732452631860,-167.28,0.00046942,2]
[343206811,1732452631870,-222.86,0.00046999,2]
[343206812,1732452631879,-500.0,0.00047,120]
[343206813,1732452631890,-1000.0,0.00047,120]
[343206814,1732452631899,-767.5854,0.00047,2]
[343206815,1732452631908,-263.9859,0.00047,2]
[343206816,1732452631919,-3844.4238,0.00047,2]
[343206817,1732452631932,-309.6534,0.00047,2]
[343206818,1732452631941,-828.07,0.0004709,10]
[343206819,1732452631951,-261.79248179,0.00047098,10]
[343206820,1732452631961,-3075.0,0.00047099,2]
[343206821,1732452631971,-4651.61421342,0.00047099,15]
[343206822,1732452631981,-27917.4081,0.000471,2]
[343206823,1732452631991,-35474.4141,0.000471,2]
[343206824,1732452632000,-3548.527,0.000471,2]
[343206825,1732452632009,-6891.5255,0.000471,2]
[343206826,1732452632019,-1593.405,0.000471,30]
[343206827,1732452632028,-974.5596,0.000471,2]
[343206828,1732452632039,-163.63116989,0.000471,28]
[343206829,1732452632047,-321.23516802,0.000471,2]
[343206830,1732452632057,-500.0,0.00047173,2]
[343206831,1732452632066,-831.78,0.00047189,30]
[343206832,1732452632076,-166.51064394,0.00047199,31]
[343206833,1732452632086,-500.0,0.00047199,31]
[343206834,1732452632095,-500.0,0.00047199,120]
[343206835,1732452632105,-583.17863179,0.00047199,120]
[343206836,1732452632114,-500.0,0.00047199,31]
[343206837,1732452632124,-500.0,0.00047199,31]
[343206838,1732452632133,-550.0,0.00047199,31]
[343206839,1732452632143,-500.0,0.00047199,120]
[343206840,1732452632153,-500.0,0.00047199,31]
[343206841,1732452632162,-500.0,0.00047199,31]
[343206842,1732452632175,-500.0,0.00047199,120]
[343206843,1732452632184,-532.54566201,0.00047199,120]
[343206844,1732452632194,-500.0,0.00047199,31]
[343206845,1732452632203,-500.0,0.00047199,31]
[343206846,1732452632213,-593.44782577,0.00047199,120]
[343206847,1732452632222,-500.0,0.00047199,120]
[343206848,1732452632232,-500.0,0.00047199,31]
[343206849,1732452632242,-500.0,0.00047199,31]
[343206850,1732452632251,-500.0,0.00047199,31]
[343206851,1732452632261,-500.0,0.00047199,31]
[343206852,1732452632271,-500.0,0.00047199,31]
[343206853,1732452632281,-650.0,0.00047199,31]
[343206854,1732452632290,-500.0,0.00047199,31]
[343206855,1732452632300,-500.0,0.00047199,31]
[343206856,1732452632309,-500.0,0.00047199,31]
[343206857,1732452632319,-500.0,0.00047199,31]
[343206858,1732452632329,-500.0,0.00047199,31]
[343206859,1732452632339,-500.0,0.00047199,31]
[343206860,1732452632369,-500.0,0.00047199,31]
[343206861,1732452632379,-500.0,0.00047199,31]
[343206862,1732452632389,-500.0,0.00047199,31]
[343206863,1732452632398,-500.0,0.00047199,31]
[343206864,1732452632407,-500.0,0.00047199,31]
[343206865,1732452632417,-246.56790075,0.00047199,31]
[343206866,1732452632431,-500.0,0.00047199,120]
[343206867,1732452632443,-500.0,0.00047199,31]
[343206868,1732452632452,-500.0,0.00047199,31]
[343206869,1732452632462,-500.0,0.00047199,31]
[343206870,1732452632472,-500.0,0.00047199,31]
[343206871,1732452632482,-500.0,0.00047199,31]
[343206872,1732452632494,-500.0,0.00047199,31]
[343206873,1732452632503,-500.0,0.00047199,31]
[343206874,1732452632513,-500.0,0.00047199,31]
[343206875,1732452632522,-500.0,0.00047199,31]
[343206876,1732452632532,-500.0,0.00047199,31]
[343206877,1732452632542,-463.63696081,0.00047199,31]
[343206878,1732452632551,-500.0,0.00047199,31]
[343206879,1732452632561,-500.0,0.00047199,31]
[343206880,1732452632570,-500.0,0.00047199,31]
[343206881,1732452632581,-500.0,0.00047199,31]
[343206882,1732452632591,-500.0,0.00047199,31]
[343206883,1732452632600,-500.0,0.00047199,31]
[343206884,1732452632610,-175.31453223,0.00047199,120]
[343206885,1732452632619,-180.61284833,0.00047199,31]
[343206886,1732452632628,-800.0,0.000472,7]
[343206887,1732452632638,-31266.02558021,0.000472,2]
[343206888,1732452632651,-9509.499999,0.000472,2]
[343206889,1732452632662,-967.22,0.000472,2]
[343206890,1732452635571,-511.165,0.00047099,2]
[343206891,1732452635581,-799.635,0.000472,2]
[343206892,1732452635637,-1291.1088336,0.000472,2]
[343206893,1732452635648,-2571.67757578,0.000472,2]
[343206894,1732452635659,-296.34962794,0.000472,2]
[343206895,1732452635671,-4826.1,0.000472,2]
[343206896,1732452635686,-336.9767246,0.000472,2]
[343206897,1732452635699,-1111.27440349,0.000472,2]
[343206898,1732452635760,-25358.4024438,0.000472,2]
[343206899,1732452635772,-1360.0,0.000472,2]
[343206900,1732452635784,-8710.13634212,0.000472,2]
[343207099,1732452637530,-8234.3112064,0.00047,30]
[343207102,1732452637540,-1553.9845,0.00047099,60]
[343207104,1732452637549,-10129.0936466,0.000472,2]
[343207107,1732452637562,-11609.60138839,0.000472,2]
[343207109,1732452637577,-468.129167,0.000472,2]
[343207114,1732452637605,-25737.80846157,0.000472,2]
[343207117,1732452637616,-15139.83587257,0.000472,2]
[343207122,1732452637627,-5337.57508369,0.000472,2]
[343207125,1732452637638,-532.44,0.000472,2]
[343207128,1732452637650,-678.0,0.000472,2]
[343207131,1732452637662,-1800.83630289,0.000472,2]
[343207155,1732452637779,-71269.49354983,0.000472,2]
[343207170,1732452637842,-229790.38449692,0.000472,2]
[343207173,1732452637851,-25260.7743,0.000472,2]
[343207176,1732452637862,-1337.94346139,0.000472,30]
[343207179,1732452637872,-150.0,0.00047402,7]
[343207182,1732452637882,-30000.0,0.000475,2]
[343207185,1732452637893,-1750.56424176,0.000475,30]
[343207188,1732452637903,-500.0,0.000475,120]
[343207191,1732452637912,-1000.0,0.000475,120]
[343207194,1732452637922,-4651.61421337,0.00047514,15]
[343207196,1732452637935,-1000.0,0.000476,120]
[343207199,1732452637945,-10916.70357139,0.000477,20]
[343207202,1732452637954,-1157.99242912,0.000477,120]
[343207205,1732452637966,-500.0,0.000477,120]
[343207207,1732452637976,-757.59742383,0.000477,120]
[343207210,1732452637985,-300.0,0.000477,17]
[343207213,1732452637994,-1000.0,0.00047721,2]
[343207216,1732452638003,-586.20333925,0.00047799,2]
[343207219,1732452638013,-150.0,0.00047799,30]
[343207223,1732452638024,-99035.07197688,0.000478,2]
[343207226,1732452638036,-1097.7500218,0.000478,2]
[343207228,1732452638047,-664.8856056,0.000478,2]
[343207230,1732452638058,-78393.93440266,0.000478,2]
[343207232,1732452638068,-22182.66249256,0.000478,2]
[343207234,1732452638077,-1231.1414872,0.000478,120]
[343207235,1732452638089,-200.0,0.000478,7]
[343207236,1732452638098,-89.78815348,0.000478,39]
[343207253,1732452638367,-1014.33204652,0.000478,39]
[343207255,1732452638376,-700.0,0.000478,17]
[343207257,1732452638386,-16865.76799348,0.000478,2]
[343207259,1732452638397,-1596.33053403,0.000478,2]
[343207261,1732452638408,-1494.58705974,0.000478,2]
[343207264,1732452639481,-349.91085503,0.000477,2]
[343207265,1732452639496,-90.08914497,0.000477,2]
[343207266,1732452639506,-3650.32753503,0.000478,2]
[343207267,1732452639517,-1620.84215247,0.000478,2]
[343207268,1732452639530,-11005.47963529,0.000478,2]
[343207269,1732452639540,-170.45,0.00047812,2]
[343207270,1732452639550,-1806.3145693,0.00047825,2]
[343207271,1732452639560,-2277.5801648,0.00047825,2]
[343207272,1732452639570,-3135.4257985,0.00047825,2]
[343207273,1732452639581,-1342.45785168,0.00047858,4]
[343207274,1732452639591,-6791.49970292,0.0004786,4]
[343207275,1732452639600,-256.62920939,0.00047861,4]
[343207276,1732452639609,-481.84069065,0.00047861,4]
[343207277,1732452639619,-200.0,0.00047862,4]
[343207278,1732452639628,-481.84069065,0.00047871,4]
[343207279,1732452639638,-1342.45785168,0.00047884,4]
[343207280,1732452639647,-6791.49970292,0.00047886,4]
[343207281,1732452639656,-256.62920939,0.00047896,4]
[343207282,1732452639666,-1000.0,0.000479,7]
[343207283,1732452639676,-309.64,0.000479,102]
[343207284,1732452639690,-996.7,0.000479,102]
[343207285,1732452639700,-1000.0,0.000479,17]
[343207286,1732452639710,-1799.20948285,0.000479,10]
[343207287,1732452639720,-481.84069065,0.000479,4]
[343207288,1732452639728,-150.0,0.00047906,7]
[343207289,1732452639738,-256.62920939,0.0004791,4]
[343207290,1732452639748,-481.84069065,0.00047911,4]
[343207291,1732452639757,-200.0,0.00047916,4]
[343207292,1732452639767,-481.84069065,0.00047916,4]
[343207293,1732452639776,-1342.45785168,0.00047917,4]
[343207294,1732452639786,-4651.61421337,0.00047929,15]
[343207295,1732452639795,-150.0,0.00047936,30]
[343207296,1732452639805,-6791.49970292,0.00047937,4]
[343207297,1732452639814,-1342.45785168,0.00047938,4]
[343207298,1732452639823,-413.20766939,0.00047939,4]
[343207299,1732452639833,-1052.0,0.00047943,7]
[343207300,1732452639842,-6791.49970292,0.00047944,4]
[343207301,1732452639851,-151.0,0.00047944,14]
[343207302,1732452639860,-151.0,0.00047944,14]
[343207303,1732452639870,-151.0,0.00047944,14]
[343207304,1732452639879,-458.89779,0.00047944,14]
[343207305,1732452639888,-164.54887668,0.00047944,14]
[343207306,1732452639900,-294.34891332,0.00047944,14]
[343207307,1732452639911,-151.0,0.00047944,14]
[343207308,1732452639920,-151.0,0.00047944,14]
[343207309,1732452639934,-151.0,0.00047944,14]
[343207310,1732452639944,-87.61108675,0.00047944,14]
[343207311,1732452639955,-162.83509025,0.00047944,14]
[343207312,1732452639965,-178.09228,0.00047944,14]
[343207313,1732452639974,-105.56595644,0.00047944,14]
[343207314,1732452639990,-144.88022056,0.00047944,14]
[343207315,1732452640000,-178.09228,0.00047944,14]
[343207316,1732452640009,-151.0,0.00047944,14]
[343207317,1732452640019,-151.0,0.00047944,14]
[343207318,1732452640028,-151.0,0.00047944,14]
[343207319,1732452640038,-163.67291,0.00047944,14]
[343207320,1732452640048,-158.787477,0.00047944,14]
[343207321,1732452640057,-151.0,0.00047944,14]
[343207322,1732452640067,-151.0,0.00047944,14]
[343207323,1732452640076,-151.0,0.00047944,14]
[343207324,1732452640086,-151.0,0.00047944,14]
[343207325,1732452640095,-151.0,0.00047944,14]
[343207326,1732452640105,-151.0,0.00047944,14]
[343207327,1732452640114,-151.0,0.00047944,14]
[343207328,1732452640124,-328.00152,0.00047944,14]
[343207329,1732452640133,-189.80243944,0.00047944,14]
[343207330,1732452640144,-138.19908056,0.00047944,14]
[343207331,1732452640154,-171.666008,0.00047944,14]
[343207332,1732452640164,-151.0,0.00047944,14]
[343207333,1732452640173,-171.666008,0.00047944,14]
[343207334,1732452640191,-151.0,0.00047944,14]
[343207335,1732452640201,-151.0,0.00047944,14]
[343207336,1732452640210,-151.0,0.00047944,14]
[343207337,1732452640219,-151.0,0.00047944,14]
[343207338,1732452640228,-151.0,0.00047944,14]
[343207339,1732452640238,-1290.514309,0.00047944,14]
[343207340,1732452640247,-1290.514309,0.00047944,14]
[343207341,1732452640256,-272.593202,0.00047944,14]
[343207342,1732452640265,-272.593202,0.00047944,14]
[343207343,1732452640275,-19.83858066,0.00047944,14]
[343207344,1732452640287,-157.61009834,0.00047944,14]
[343207345,1732452640296,-156.10816,0.00047944,14]
[343207346,1732452640305,-177.448679,0.00047944,14]
[343207347,1732452640314,-1217.36617,0.00047944,14]
[343207348,1732452640323,-227.455924,0.00047944,14]
[343207349,1732452640332,-1217.36617,0.00047944,14]
[343207350,1732452640341,-227.455924,0.00047944,14]
[343207351,1732452640350,-151.0,0.00047944,14]
[343207352,1732452640360,-261.861222,0.00047944,14]
[343207353,1732452640369,-99.92765066,0.00047945,14]
[343207354,1732452640380,-51.07234934,0.00047945,14]
[343207355,1732452640390,-151.0,0.00047945,14]
[343207356,1732452640399,-151.0,0.00047945,14]
[343207357,1732452640408,-257.31898535,0.00047945,3]
[343207358,1732452640422,-742.68101465,0.00047945,3]
[343207359,1732452640436,-1000.0,0.00047945,3]
[343207360,1732452640445,-197.93246535,0.00047945,3]
[343207361,1732452640460,-550.720004,0.00047945,3]
[343207362,1732452640471,-251.34753065,0.00047945,3]
[343207363,1732452640482,-420.0,0.00047945,3]
[343207364,1732452640492,-292.85624118,0.00047949,4]
[343207365,1732452640504,-6498.64346174,0.00047949,4]
[343207366,1732452640514,-413.20766939,0.00047958,4]
[343207367,1732452640525,-1342.45785168,0.00047959,4]
[343207368,1732452640534,-256.62920939,0.00047959,4]
[343207369,1732452640544,-6791.49970292,0.0004796,4]
[343207370,1732452640553,-256.62920939,0.00047962,4]
[343207371,1732452640564,-413.20766939,0.00047968,4]
[343207372,1732452640574,-481.84069065,0.00047978,4]
[343207373,1732452640583,-413.20766939,0.00047984,4]
[343207374,1732452640592,-230.12,0.0004799,2]
[343207375,1732452640601,-413.20766939,0.00047991,4]
[343207376,1732452640611,-413.20766939,0.00047992,4]
[343207377,1732452640620,-1342.45785168,0.00047998,4]
[343207378,1732452640629,-151.0,0.00047998,14]
[343207379,1732452640638,-151.0,0.00047998,14]
[343207380,1732452640647,-273.186356,0.00047998,14]
[343207381,1732452640656,-151.0,0.00047998,14]
[343207382,1732452640665,-151.0,0.00047998,14]
[343207383,1732452640674,-151.0,0.00047998,14]
[343207384,1732452640688,-151.0,0.00047998,14]
[343207385,1732452640700,-157.379021,0.00047998,14]
[343207386,1732452640713,-458.89779,0.00047998,14]
[343207387,1732452640726,-458.89779,0.00047998,14]
[343207388,1732452640739,-151.0,0.00047998,14]
[343207389,1732452640750,-151.0,0.00047998,14]
[343207390,1732452640761,-151.0,0.00047998,14]
[343207391,1732452640774,-250.446177,0.00047998,14]
[343207392,1732452640786,-178.09228,0.00047998,14]
[343207393,1732452640798,-250.446177,0.00047998,14]
[343207394,1732452640811,-178.09228,0.00047998,14]
[343207395,1732452640823,-151.0,0.00047998,14]
[343207396,1732452640836,-151.0,0.00047998,14]
[343207397,1732452640847,-151.0,0.00047998,14]
[343207398,1732452640858,-151.0,0.00047998,14]
[343207399,1732452640869,-151.0,0.00047998,14]
[343207400,1732452640879,-151.0,0.00047998,14]
[343207401,1732452640893,-151.0,0.00047998,14]
[343207402,1732452640905,-328.00152,0.00047998,14]
[343207403,1732452640917,-328.00152,0.00047998,14]
[343207404,1732452640931,-171.666008,0.00047998,14]
[343207405,1732452640943,-151.0,0.00047998,14]
[343207406,1732452640956,-171.666008,0.00047998,14]
[343207407,1732452640969,-228.808054,0.00047998,14]
[343207408,1732452640981,-151.0,0.00047998,14]
[343207409,1732452640993,-151.0,0.00047998,14]
[343207410,1732452641006,-1290.514309,0.00047998,14]
[343207411,1732452641018,-1290.514309,0.00047998,14]
[343207412,1732452641030,-272.593202,0.00047998,14]
[343207413,1732452641042,-272.593202,0.00047998,14]
[343207414,1732452641054,-177.448679,0.00047998,14]
[343207415,1732452641064,-177.448679,0.00047998,14]
[343207416,1732452641076,-1217.36617,0.00047998,14]
[343207417,1732452641088,-227.455924,0.00047998,14]
[343207418,1732452641102,-1217.36617,0.00047998,14]
[343207419,1732452641113,-227.455924,0.00047998,14]
[343207420,1732452641125,-151.0,0.00047998,14]
[343207421,1732452641136,-100000.0,0.00047998,10]
[343207422,1732452641147,-200.0,0.00048,120]
[343207423,1732452641158,-3000.0,0.00048,4]
[343207424,1732452641172,-30000.0,0.00048,120]
[343207425,1732452641189,-6537.01989235,0.00048,2]
[343207426,1732452641200,-271.951,0.00048,120]
[343207427,1732452641210,-485.95110725,0.00048,120]
[343207428,1732452641220,-150.0,0.00048015,7]
[343207429,1732452641231,-150.0,0.00048073,30]
[343207430,1732452641244,-204.0,0.0004808,30]
[343207431,1732452641257,-203.0,0.000481,30]
[343207432,1732452641268,-207.0,0.000481,30]
[343207433,1732452641280,-498.02182816,0.00048173,10]
[343207434,1732452641291,-151.0,0.00048199,14]
[343207435,1732452641302,-1000.0,0.00048199,120]
[343207436,1732452641313,-227.455924,0.00048199,14]
[343207437,1732452641324,-227.455924,0.00048199,14]
[343207438,1732452641335,-151.0,0.00048199,14]
[343207439,1732452641348,-88473.5971289,0.000482,19]
[343207440,1732452641363,-255708.11216684,0.000482,19]
[343207441,1732452641377,-5809.128325,0.000482,19]
[343207442,1732452641396,-279.18,0.000477,2]
[343207443,1732452641409,-220.82,0.000477,2]
[343207444,1732452641421,-93.3049975,0.000482,19]
[343207445,1732452641440,-2420.797725,0.000482,19]
[343207446,1732452641454,-1314.36064151,0.000482,19]
[343207447,1732452641468,-743.36241628,0.000482,19]
[343207448,1732452641487,-386.496,0.000482,19]
[343207451,1732452643704,-964.73870505,0.00047,2]
[343207467,1732452643968,-1058.44239495,0.00047,2]
[343207468,1732452643981,-1000.0,0.000471,2]
[343207469,1732452643993,-488.50278271,0.00047799,2]
[343207470,1732452644005,-2137.55174639,0.000482,19]
[343207471,1732452644020,-29372.49482382,0.000482,19]
[343207472,1732452644031,-14782.79637998,0.000482,15]
[343207473,1732452644043,-107919.11618843,0.000482,10]
[343207474,1732452644057,-1731.90273666,0.000482,10]
[343207475,1732452644071,-11185.72712343,0.000482,10]
[343207476,1732452644083,-151.0,0.000482,14]
[343207477,1732452644095,-151.0,0.000482,14]
[343207478,1732452644106,-151.0,0.000482,14]
[343207479,1732452644117,-151.051524,0.000482,14]
[343207480,1732452644129,-151.0,0.000482,14]
[343207481,1732452644139,-151.0,0.000482,14]
[343207482,1732452644152,-458.89779,0.000482,14]
[343207483,1732452644163,-458.89779,0.000482,14]
[343207484,1732452644175,-151.0,0.000482,14]
[343207485,1732452644191,-151.0,0.000482,14]
[343207486,1732452644203,-250.446177,0.000482,14]
[343207487,1732452644214,-178.09228,0.000482,14]
[343207488,1732452644225,-250.446177,0.000482,14]
[343207489,1732452644236,-178.09228,0.000482,14]
[343207490,1732452644248,-151.67622,0.000482,14]
[343207491,1732452644259,-151.0,0.000482,14]
[343207492,1732452644271,-151.0,0.000482,14]
[343207493,1732452644283,-151.0,0.000482,14]
[343207494,1732452644294,-151.0,0.000482,14]
[343207495,1732452644305,-281.342922,0.000482,14]
[343207496,1732452644316,-151.0,0.000482,14]
[343207497,1732452644328,-151.0,0.000482,14]
[343207498,1732452644340,-292.62893278,0.000482,14]
[343207499,1732452644351,-328.00152,0.000482,14]
[343207500,1732452644362,-328.00152,0.000482,14]
[343207501,1732452644374,-328.00152,0.000482,14]
[343207502,1732452644386,-328.00152,0.000482,14]
[343207503,1732452644398,-171.666008,0.000482,14]
[343207504,1732452644409,-151.0,0.000482,14]
[343207505,1732452644423,-171.666008,0.000482,14]
[343207506,1732452644438,-151.0,0.000482,14]
[343207507,1732452644450,-171.666008,0.000482,14]
[343207508,1732452644462,-171.666008,0.000482,14]
[343207510,1732452644475,-151.0,0.000482,14]
[343207512,1732452644488,-151.0,0.000482,14]
[343207514,1732452644499,-151.0,0.000482,14]
[343207516,1732452644508,-1290.514309,0.000482,14]
[343207518,1732452644519,-1290.514309,0.000482,14]
[343207519,1732452644528,-1290.514309,0.000482,14]
[343207521,1732452644537,-1290.514309,0.000482,14]
[343207523,1732452644547,-272.593202,0.000482,14]
[343207525,1732452644556,-272.593202,0.000482,14]
[343207543,1732452644767,-272.593202,0.000482,14]
[343207547,1732452644784,-272.593202,0.000482,14]
[343207548,1732452644795,-177.448679,0.000482,14]
[343207550,1732452644804,-177.448679,0.000482,14]
[343207552,1732452644814,-177.448679,0.000482,14]
[343207553,1732452644823,-177.448679,0.000482,14]
[343207554,1732452644833,-1217.36617,0.000482,14]
[343207555,1732452644843,-1217.36617,0.000482,14]
[343207556,1732452644853,-227.455924,0.000482,14]
[343207557,1732452644862,-1217.36617,0.000482,14]
[343207558,1732452644871,-1217.36617,0.000482,14]
[343207559,1732452644881,-227.455924,0.000482,14]
[343207560,1732452644890,-151.0,0.000482,14]
[343207561,1732452644900,-150.0,0.00048207,7]
[343207562,1732452644909,-150.0,0.0004821,30]
[343207563,1732452644919,-200.0,0.00048278,7]
[343207564,1732452644930,-885.68,0.00048284,2]
[343207565,1732452644940,-151.0,0.000483,14]
[343207566,1732452644949,-151.0,0.000483,14]
[343207567,1732452644959,-250.446177,0.000483,14]
[343207568,1732452644968,-178.09228,0.000483,14]
[343207569,1732452644978,-250.446177,0.000483,14]
[343207570,1732452644987,-178.09228,0.000483,14]
[343207571,1732452644997,-730.0,0.000483,30]
[343207572,1732452645006,-1104.1202,0.0004833,41]
[343207573,1732452645016,-4651.61421337,0.00048344,15]
[343207574,1732452645025,-251.15,0.00048347,30]
[343207575,1732452645035,-5397.51,0.000485,10]
[343207576,1732452645045,-150.0,0.00048529,7]
[343207577,1732452645054,-150.0,0.00048575,30]
[343207578,1732452645063,-800.0,0.00048592,120]
[343207579,1732452645073,-500.0,0.00048592,120]
[343207580,1732452645083,-500.0,0.00048592,120]
[343207581,1732452645094,-458.89779,0.000486,14]
[343207582,1732452645105,-458.89779,0.000486,14]
[343207583,1732452645116,-1000.0,0.0004861,120]
[343207584,1732452645125,-2111.2714317,0.00048668,2]
[343207585,1732452645136,-2662.099956,0.00048668,2]
[343207586,1732452645146,-203.0,0.0004869,30]
[343207587,1732452645156,-207.0,0.0004869,30]
[343207588,1732452645165,-1799.17,0.000487,10]
[343207589,1732452645175,-1381.64900741,0.00048722,2]
[343207590,1732452645189,-169.4,0.00048732,120]
[343207591,1732452645198,-4651.61421337,0.00048759,15]
[343207592,1732452645207,-200.0,0.00048761,7]
[343207593,1732452645217,-4389.5961179,0.00048767,2]